[Event "FIDE World Rapid Chess Championship 2021"]
[White "Sychev, Klementy"]
[Black "Adly, Ahmed"]
[WhiteFideId "4114060"]
[BlackFideId "10601619"]
[WhiteElo "2461"]
[BlackElo "2597"]
[Result "0-1"]
[Round "09"]
[TimeControl "900+10"]
[Date "2021.12.27"]
[WhiteClock "0:01:04"]
[BlackClock "0:00:09"]

1. e4 {[%clk 0:15:00]}  g6 {[%clk 0:15:00]} 2. d4 {[%clk 0:15:00]}  Bg7 {[%clk 0:15:00]} 3. Nc3 {[%clk 0:15:00]}  a6 {[%clk 0:15:00]} 4. Be3 {[%clk 0:15:00]}  b5 {[%clk 0:15:00]} 5. Nf3 {[%clk 0:15:00]}  Bb7 {[%clk 0:15:00]} 6. Bd3 {[%clk 0:15:00]}  d6 {[%clk 0:15:00]} 7. O-O {[%clk 0:14:25]}  e6 {[%clk 0:13:19]} 8. a4 {[%clk 0:14:25]}  b4 {[%clk 0:13:19]} 9. Ne2 {[%clk 0:14:25]}  Nf6 {[%clk 0:13:19]} 10. Ng3 {[%clk 0:14:25]}  O-O {[%clk 0:13:19]} 11. a5 {[%clk 0:14:25]}  d5 {[%clk 0:13:19]} 12. e5 {[%clk 0:14:25]}  Nfd7 {[%clk 0:13:19]} 13. Bg5 {[%clk 0:13:54]}  Qe8 {[%clk 0:12:11]} 14. Qd2 {[%clk 0:11:54]}  c5 {[%clk 0:11:40]} 15. Bh6 {[%clk 0:10:59]}  Bh8 {[%clk 0:11:49]} 16. c3 {[%clk 0:10:59]}  Nc6 {[%clk 0:11:49]} 17. h4 {[%clk 0:10:59]}  f5 {[%clk 0:11:03]} 18. Bxf8 {[%clk 0:06:27]}  Qxf8 {[%clk 0:11:03]} 19. Bc2 {[%clk 0:04:38]}  Bg7 {[%clk 0:11:06]} 20. Ba4 {[%clk 0:04:38]}  Bh6 {[%clk 0:11:06]} 21. Qe1 {[%clk 0:03:10]}  Qe7 {[%clk 0:09:35]} 22. Ne2 {[%clk 0:03:10]}  Kh8 {[%clk 0:09:05]} 23. dxc5 {[%clk 0:01:51]}  Nxc5 {[%clk 0:06:30]} 24. Bxc6 {[%clk 0:01:51]}  Bxc6 {[%clk 0:06:30]} 25. Ned4 {[%clk 0:01:51]}  Bd7 {[%clk 0:06:30]} 26. cxb4 {[%clk 0:01:51]}  Ne4 {[%clk 0:06:30]} 27. b5 {[%clk 0:01:51]}  axb5 {[%clk 0:06:30]} 28. a6 {[%clk 0:01:51]}  g5 {[%clk 0:05:34]} 29. hxg5 {[%clk 0:01:32]}  Bxg5 {[%clk 0:05:34]} 30. Nxg5 {[%clk 0:01:32]}  Qxg5 {[%clk 0:05:34]} 31. f4 {[%clk 0:01:32]}  Qe7 {[%clk 0:05:34]} 32. Qe3 {[%clk 0:01:32]}  Bc8 {[%clk 0:05:34]} 33. Rfc1 {[%clk 0:01:32]}  Qg7 {[%clk 0:04:47]} 34. a7 {[%clk 0:01:00]}  Bb7 {[%clk 0:04:47]} 35. Nxe6 {[%clk 0:01:00]}  Qg6 {[%clk 0:04:47]} 36. Nc7 {[%clk 0:01:00]}  Rg8 {[%clk 0:04:47]} 37. Rc2 {[%clk 0:01:00]}  Qh5 {[%clk 0:04:38]} 38. e6 {[%clk 0:01:07]}  h6 {[%clk 0:04:38]} 39. Qd4+ {[%clk 0:01:07]}  Kh7 {[%clk 0:04:38]} 40. a8=Q {[%clk 0:01:07]}  Bxa8 {[%clk 0:04:38]} 41. Rxa8 {[%clk 0:01:07]}  Qh4 {[%clk 0:04:38]} 42. Ra1 {[%clk 0:01:07]}  Ng3 {[%clk 0:00:09]} 43. Ra8 {[%clk 0:01:04]} 0-1


[Site "http://www.Chess.com"]

[Event "FIDE World Rapid Chess Championship 2021"]
[White "Quparadze, Giga"]
[Black "Kantor, Gergely"]
[WhiteFideId "13602250"]
[BlackFideId "751499"]
[WhiteElo "2583"]
[BlackElo "2454"]
[Result "1/2-1/2"]
[Round "09"]
[TimeControl "900+10"]
[Date "2021.12.27"]
[WhiteClock "0:13:28"]
[BlackClock "0:01:13"]

1. e4 {[%clk 0:15:00]}  e5 {[%clk 0:15:00]} 2. Nf3 {[%clk 0:15:00]}  Nc6 {[%clk 0:15:00]} 3. Bb5 {[%clk 0:15:00]}  a6 {[%clk 0:15:00]} 4. Ba4 {[%clk 0:15:00]}  Nf6 {[%clk 0:15:00]} 5. Qe2 {[%clk 0:15:00]}  b5 {[%clk 0:15:00]} 6. Bb3 {[%clk 0:15:00]}  Bc5 {[%clk 0:15:00]} 7. c3 {[%clk 0:15:00]}  O-O {[%clk 0:15:00]} 8. d3 {[%clk 0:15:00]}  d6 {[%clk 0:15:00]} 9. Bg5 {[%clk 0:15:00]}  Be6 {[%clk 0:15:00]} 10. Nbd2 {[%clk 0:15:00]}  Qe7 {[%clk 0:15:00]} 11. O-O {[%clk 0:15:00]}  h6 {[%clk 0:15:00]} 12. Bh4 {[%clk 0:15:00]}  Bb6 {[%clk 0:15:00]} 13. Kh1 {[%clk 0:15:00]}  Bxb3 {[%clk 0:15:00]} 14. axb3 {[%clk 0:15:00]}  Qe6 {[%clk 0:15:00]} 15. Ne1 {[%clk 0:15:00]}  Ne7 {[%clk 0:15:48]} 16. Bxf6 {[%clk 0:16:36]}  Qxf6 {[%clk 0:15:48]} 17. Nc2 {[%clk 0:16:36]}  Qe6 {[%clk 0:15:55]} 18. f4 {[%clk 0:16:24]}  exf4 {[%clk 0:15:55]} 19. Rxf4 {[%clk 0:16:24]}  d5 {[%clk 0:15:55]} 20. Re1 {[%clk 0:16:24]}  Rae8 {[%clk 0:15:55]} 21. Qd1 {[%clk 0:16:37]}  Ng6 {[%clk 0:12:10]} 22. Rff1 {[%clk 0:16:37]}  Ne5 {[%clk 0:12:10]} 23. exd5 {[%clk 0:16:37]}  Qxd5 {[%clk 0:12:10]} 24. Nb4 {[%clk 0:16:37]}  Qd7 {[%clk 0:12:10]} 25. d4 {[%clk 0:15:35]}  a5 {[%clk 0:11:03]} 26. Nc2 {[%clk 0:15:35]}  Ng4 {[%clk 0:11:03]} 27. h3 {[%clk 0:14:45]}  Nf6 {[%clk 0:09:38]} 28. Ne3 {[%clk 0:14:45]}  Re6 {[%clk 0:09:38]} 29. Nf5 {[%clk 0:13:32]}  Rfe8 {[%clk 0:08:23]} 30. Rxe6 {[%clk 0:13:32]}  Qxe6 {[%clk 0:08:23]} 31. c4 {[%clk 0:13:32]}  c6 {[%clk 0:08:23]} 32. Qf3 {[%clk 0:13:32]}  Bc7 {[%clk 0:08:23]} 33. Nxh6+ {[%clk 0:13:27]}  gxh6 {[%clk 0:06:32]} 34. Qxf6 {[%clk 0:13:27]}  Qxf6 {[%clk 0:06:32]} 35. Rxf6 {[%clk 0:13:27]}  Kg7 {[%clk 0:06:32]} 36. Rf5 {[%clk 0:13:27]}  Re2 {[%clk 0:06:32]} 37. Nf1 {[%clk 0:13:27]}  bxc4 {[%clk 0:05:16]} 38. bxc4 {[%clk 0:13:29]}  Rxb2 {[%clk 0:05:16]} 39. Rf3 {[%clk 0:13:29]}  a4 {[%clk 0:05:16]} 40. Ra3 {[%clk 0:13:29]}  Rb4 {[%clk 0:05:16]} 41. g4 {[%clk 0:13:29]}  Bd6 {[%clk 0:04:30]} 42. c5 {[%clk 0:12:59]}  Bf4 {[%clk 0:04:30]} 43. Ne3 {[%clk 0:12:59]}  Bxe3 {[%clk 0:04:30]} 44. Rxe3 {[%clk 0:12:59]}  Rb3 {[%clk 0:04:30]} 45. Re7 {[%clk 0:12:59]}  Rxh3+ {[%clk 0:02:40]} 46. Kg2 {[%clk 0:13:04]}  Rd3 {[%clk 0:02:40]} 47. Rc7 {[%clk 0:13:04]}  Rxd4 {[%clk 0:02:40]} 48. Rxc6 {[%clk 0:13:04]}  Rxg4+ {[%clk 0:02:40]} 49. Kf3 {[%clk 0:13:04]}  Rc4 {[%clk 0:02:40]} 50. Ra6 {[%clk 0:13:04]}  h5 {[%clk 0:02:40]} 51. c6 {[%clk 0:13:04]}  a3 {[%clk 0:02:40]} 52. Rxa3 {[%clk 0:13:53]}  Rxc6 {[%clk 0:01:52]} 53. Kf4 {[%clk 0:13:53]}  Rc4+ {[%clk 0:01:52]} 54. Kg5 {[%clk 0:13:53]}  Rc5+ {[%clk 0:01:52]} 55. Kh4 {[%clk 0:13:53]}  Kg6 {[%clk 0:01:52]} 56. Rg3+ {[%clk 0:13:53]}  Kh6 {[%clk 0:01:52]} 57. Rf3 {[%clk 0:13:53]}  Rc4+ {[%clk 0:01:52]} 58. Kh3 {[%clk 0:13:53]}  Kg6 {[%clk 0:01:52]} 59. Rg3+ {[%clk 0:13:53]}  Kf5 {[%clk 0:01:52]} 60. Rf3+ {[%clk 0:13:53]}  Rf4 {[%clk 0:01:52]} 61. Ra3 {[%clk 0:13:53]}  f6 {[%clk 0:01:52]} 62. Ra5+ {[%clk 0:13:53]}  Kg6 {[%clk 0:01:52]} 63. Ra8 {[%clk 0:13:53]}  Rf3+ {[%clk 0:01:44]} 64. Kh4 {[%clk 0:14:38]}  Rf4+ {[%clk 0:01:44]} 65. Kg3 {[%clk 0:14:38]}  Rg4+ {[%clk 0:01:44]} 66. Kh3 {[%clk 0:14:38]}  Rb4 {[%clk 0:01:44]} 67. Kg3 {[%clk 0:14:38]}  Kg5 {[%clk 0:01:44]} 68. Rg8+ {[%clk 0:14:38]}  Kf5 {[%clk 0:01:44]} 69. Rh8 {[%clk 0:14:38]}  Rb3+ {[%clk 0:01:44]} 70. Kh4 {[%clk 0:14:38]}  Kf4 {[%clk 0:01:44]} 71. Ra8 {[%clk 0:14:38]}  f5 {[%clk 0:00:00]} 72. Ra4+ {[%clk 0:15:07]}  Kf3 {[%clk 0:00:00]} 73. Kg5 {[%clk 0:15:07]}  Kg3 {[%clk 0:00:00]} 74. Kxf5 {[%clk 0:15:07]}  Re3 {[%clk 0:00:00]} 75. Kg5 {[%clk 0:15:07]}  Re5+ {[%clk 0:00:00]} 76. Kf6 {[%clk 0:15:07]}  Re1 {[%clk 0:00:00]} 77. Kg5 {[%clk 0:15:07]}  Re5+ {[%clk 0:00:00]} 78. Kf6 {[%clk 0:15:07]}  Rd5 {[%clk 0:00:00]} 79. Ra3+ {[%clk 0:15:07]}  Kf4 {[%clk 0:00:00]} 80. Ra4+ {[%clk 0:15:07]}  Kf3 {[%clk 0:00:00]} 81. Ra3+ {[%clk 0:15:07]}  Kg2 {[%clk 0:00:00]} 82. Ra2+ {[%clk 0:15:07]}  Kh3 {[%clk 0:01:13]} 83. Ra3+ {[%clk 0:13:28]}  Kg4 {[%clk 0:01:13]} 84. Ra4+ {[%clk 0:13:28]}  Kg3 {[%clk 0:01:13]} 85. Ra3+ {[%clk 0:13:28]}  Kf2 {[%clk 0:01:13]} 86. Ra2+ {[%clk 0:13:28]}  Ke3 {[%clk 0:01:13]} 87. Ra3+ {[%clk 0:13:28]}  Ke4 {[%clk 0:01:13]} 88. Ra4+ {[%clk 0:13:28]}  Rd4 {[%clk 0:01:13]} 89. Rxd4+ {[%clk 0:13:28]}  Kxd4 {[%clk 0:01:13]} 90. Kg5 {[%clk 0:13:28]}  Kd5 {[%clk 0:01:13]} 91. Kxh5 {[%clk 0:13:28]}  Ke5 {[%clk 0:01:13]} 1/2-1/2


[Site "http://www.Chess.com"]

[Event "FIDE World Rapid Chess Championship 2021"]
[White "Corrales Jimenez, Fidel"]
[Black "Sadhwani, Raunak"]
[WhiteFideId "3506690"]
[BlackFideId "35093487"]
[WhiteElo "2561"]
[BlackElo "2454"]
[Result "1-0"]
[Round "09"]
[TimeControl "900+10"]
[Date "2021.12.27"]
[WhiteClock "0:02:18"]
[BlackClock "0:01:43"]

1. e4 {[%clk 0:15:00]}  e5 {[%clk 0:15:00]} 2. Nf3 {[%clk 0:15:00]}  Nc6 {[%clk 0:15:00]} 3. d4 {[%clk 0:15:00]}  exd4 {[%clk 0:15:00]} 4. Nxd4 {[%clk 0:15:00]}  Nf6 {[%clk 0:15:00]} 5. Nxc6 {[%clk 0:15:00]}  bxc6 {[%clk 0:15:00]} 6. e5 {[%clk 0:15:00]}  Qe7 {[%clk 0:15:00]} 7. Qe2 {[%clk 0:15:00]}  Nd5 {[%clk 0:15:00]} 8. c4 {[%clk 0:15:00]}  Nb6 {[%clk 0:15:00]} 9. Nd2 {[%clk 0:15:00]}  a5 {[%clk 0:15:00]} 10. g3 {[%clk 0:15:00]}  g6 {[%clk 0:16:02]} 11. Bg2 {[%clk 0:15:46]}  Bg7 {[%clk 0:13:50]} 12. O-O {[%clk 0:15:46]}  O-O {[%clk 0:13:50]} 13. Re1 {[%clk 0:15:46]}  a4 {[%clk 0:13:50]} 14. Rb1 {[%clk 0:15:46]}  Re8 {[%clk 0:13:50]} 15. Ne4 {[%clk 0:09:07]}  Ba6 {[%clk 0:13:55]} 16. b3 {[%clk 0:07:47]}  Bxe5 {[%clk 0:11:18]} 17. Bg5 {[%clk 0:07:53]}  Qf8 {[%clk 0:09:01]} 18. Bf6 {[%clk 0:06:51]}  d5 {[%clk 0:09:01]} 19. Bxe5 {[%clk 0:06:51]}  dxe4 {[%clk 0:09:01]} 20. Ba1 {[%clk 0:06:59]}  f6 {[%clk 0:05:47]} 21. Qb2 {[%clk 0:06:59]}  axb3 {[%clk 0:05:47]} 22. axb3 {[%clk 0:06:59]}  Nd7 {[%clk 0:05:47]} 23. Bxe4 {[%clk 0:06:59]}  Bb7 {[%clk 0:05:47]} 24. b4 {[%clk 0:06:46]}  Qf7 {[%clk 0:04:40]} 25. Qc3 {[%clk 0:04:23]}  Rad8 {[%clk 0:04:00]} 26. Rbd1 {[%clk 0:03:35]}  Kg7 {[%clk 0:02:32]} 27. h4 {[%clk 0:03:35]}  Nb6 {[%clk 0:02:32]} 28. Rxd8 {[%clk 0:03:35]}  Rxd8 {[%clk 0:02:32]} 29. b5 {[%clk 0:03:35]}  Nxc4 {[%clk 0:02:32]} 30. bxc6 {[%clk 0:02:39]}  Bc8 {[%clk 0:01:09]} 31. Bg2 {[%clk 0:02:39]}  h5 {[%clk 0:01:09]} 32. Qxf6+ {[%clk 0:02:39]}  Qxf6 {[%clk 0:01:09]} 33. Re7+ {[%clk 0:02:39]}  Kf8 {[%clk 0:01:09]} 34. Bxf6 {[%clk 0:02:39]}  Rd1+ {[%clk 0:01:09]} 35. Kh2 {[%clk 0:02:39]}  Rd2 {[%clk 0:01:09]} 36. Rxc7 {[%clk 0:02:39]}  Bf5 {[%clk 0:01:09]} 37. Be7+ {[%clk 0:02:39]}  Kg8 {[%clk 0:01:43]} 38. Bg5 {[%clk 0:02:18]}  Rxf2 {[%clk 0:01:43]} 39. Kg1 {[%clk 0:02:18]}  Rc2 {[%clk 0:01:43]} 40. Bd5+ {[%clk 0:02:18]}  Kf8 {[%clk 0:01:43]} 41. Rf7+ {[%clk 0:02:18]}  Ke8 {[%clk 0:01:43]} 42. Rg7 {[%clk 0:02:18]} 1-0


[Site "http://www.Chess.com"]

[Event "FIDE World Rapid Chess Championship 2021"]
[White "Theodorou, Nikolas"]
[Black "Costachi, Mihnea"]
[WhiteFideId "4262875"]
[BlackFideId "1217518"]
[WhiteElo "2559"]
[BlackElo "2443"]
[Result "1/2-1/2"]
[Round "09"]
[TimeControl "900+10"]
[Date "2021.12.27"]
[WhiteClock "0:00:38"]
[BlackClock "0:02:24"]

1. d4 {[%clk 0:15:00]}  Nf6 {[%clk 0:15:00]} 2. c4 {[%clk 0:15:00]}  Bg7 {[%clk 0:15:00]} 3. e4 {[%clk 0:15:00]}  d6 {[%clk 0:15:00]} 4. f4 {[%clk 0:15:00]}  O-O {[%clk 0:15:00]} 5. Nf3 {[%clk 0:15:00]}  c5 {[%clk 0:15:00]} 6. d5 {[%clk 0:15:00]}  b5 {[%clk 0:15:00]} 7. cxb5 {[%clk 0:15:00]}  a6 {[%clk 0:15:00]} 8. a4 {[%clk 0:15:00]}  axb5 {[%clk 0:15:00]} 9. Bxb5 {[%clk 0:15:00]}  Ba6 {[%clk 0:15:00]} 10. Rb1 {[%clk 0:15:00]}  e6 {[%clk 0:15:29]} 11. dxe6 {[%clk 0:14:44]}  fxe6 {[%clk 0:13:27]} 12. e5 {[%clk 0:14:44]}  dxe5 {[%clk 0:13:27]} 13. Qxd8 {[%clk 0:14:44]}  Rxd8 {[%clk 0:13:27]} 14. Nxe5 {[%clk 0:14:44]}  Bxb5 {[%clk 0:13:27]} 15. axb5 {[%clk 0:12:57]}  Nd5 {[%clk 0:13:23]} 16. O-O {[%clk 0:12:57]}  Nd7 {[%clk 0:13:23]} 17. Nc6 {[%clk 0:12:50]}  Re8 {[%clk 0:11:16]} 18. Bd2 {[%clk 0:10:25]}  N7b6 {[%clk 0:09:42]} 19. Ne4 {[%clk 0:09:26]}  Nc4 {[%clk 0:08:33]} 20. Bc3 {[%clk 0:09:33]}  Ra2 {[%clk 0:08:33]} 21. Bxg7 {[%clk 0:09:35]}  Kxg7 {[%clk 0:03:45]} 22. Rf2 {[%clk 0:09:35]}  Nc7 {[%clk 0:03:45]} 23. Rc1 {[%clk 0:03:08]}  Nb6 {[%clk 0:02:24]} 24. Rxc5 {[%clk 0:03:08]}  Nd7 {[%clk 0:02:24]} 25. Nd6 {[%clk 0:03:08]}  Nxc5 {[%clk 0:02:24]} 26. b6 {[%clk 0:03:08]}  N5a6 {[%clk 0:02:24]} 27. bxc7 {[%clk 0:00:37]}  Nxc7 {[%clk 0:00:26]} 28. Nxe8+ {[%clk 0:00:37]}  Nxe8 {[%clk 0:00:26]} 29. Re2 {[%clk 0:00:37]}  Nc7 {[%clk 0:00:26]} 30. g3 {[%clk 0:00:37]}  Kf6 {[%clk 0:00:26]} 31. Ne5 {[%clk 0:00:37]}  g5 {[%clk 0:00:26]} 32. fxg5+ {[%clk 0:00:37]}  Kxg5 {[%clk 0:00:26]} 33. Rf2 {[%clk 0:00:37]}  Nd5 {[%clk 0:00:26]} 34. h4+ {[%clk 0:00:37]}  Kh6 {[%clk 0:00:26]} 35. g4 {[%clk 0:00:37]}  Ra1+ {[%clk 0:00:26]} 36. Kh2 {[%clk 0:00:37]}  Re1 {[%clk 0:00:26]} 37. Nf7+ {[%clk 0:00:30]}  Kg6 {[%clk 0:00:18]} 38. h5+ {[%clk 0:00:30]}  Kg7 {[%clk 0:00:18]} 39. g5 {[%clk 0:00:30]}  Ne3 {[%clk 0:00:18]} 40. Nh6 {[%clk 0:00:30]}  Nf5 {[%clk 0:00:18]} 41. Nxf5+ {[%clk 0:00:30]}  exf5 {[%clk 0:00:18]} 42. Rc2 {[%clk 0:00:30]}  Re3 {[%clk 0:00:14]} 43. Rc7+ {[%clk 0:00:13]}  Kg8 {[%clk 0:00:14]} 44. b4 {[%clk 0:00:13]}  Rb3 {[%clk 0:00:14]} 45. Rb7 {[%clk 0:00:13]}  h6 {[%clk 0:00:14]} 46. g6 {[%clk 0:00:13]}  f4 {[%clk 0:00:14]} 47. b5 {[%clk 0:00:13]}  Kh8 {[%clk 0:00:14]} 48. b6 {[%clk 0:00:13]}  Kg8 {[%clk 0:00:14]} 49. Kg2 {[%clk 0:00:13]}  Kh8 {[%clk 0:00:14]} 50. Kf2 {[%clk 0:00:13]}  Kg8 {[%clk 0:00:14]} 51. Rb8+ {[%clk 0:00:13]}  Kg7 {[%clk 0:00:14]} 52. Rb7+ {[%clk 0:00:13]}  Kg8 {[%clk 0:00:14]} 53. Kg1 {[%clk 0:00:13]}  Rb2 {[%clk 0:00:14]} 54. Kf1 {[%clk 0:00:13]}  f3 {[%clk 0:00:14]} 55. Rb8+ {[%clk 0:00:13]}  Kg7 {[%clk 0:00:14]} 56. b7 {[%clk 0:00:13]}  Rb1+ {[%clk 0:00:14]} 57. Kf2 {[%clk 0:00:13]}  Rb2+ {[%clk 0:00:14]} 58. Kxf3 {[%clk 0:00:13]}  Rb3+ {[%clk 0:00:14]} 59. Ke4 {[%clk 0:00:13]}  Rb1 {[%clk 0:01:24]} 60. Kd3 {[%clk 0:00:41]}  Rb3+ {[%clk 0:01:24]} 61. Kd4 {[%clk 0:00:41]}  Rb1 {[%clk 0:01:24]} 62. Ke3 {[%clk 0:00:41]}  Rb3+ {[%clk 0:01:24]} 63. Kf2 {[%clk 0:00:41]}  Rb2+ {[%clk 0:01:24]} 64. Kg3 {[%clk 0:00:41]}  Rb3+ {[%clk 0:01:24]} 65. Kf4 {[%clk 0:00:41]}  Rb1 {[%clk 0:01:24]} 66. Kf3 {[%clk 0:00:41]}  Rb3+ {[%clk 0:01:24]} 67. Ke2 {[%clk 0:00:41]}  Rb2+ {[%clk 0:01:24]} 68. Kd3 {[%clk 0:00:41]}  Rb1 {[%clk 0:01:24]} 69. Kc2 {[%clk 0:00:41]}  Rb5 {[%clk 0:01:24]} 70. Kc3 {[%clk 0:00:41]}  Rb1 {[%clk 0:01:24]} 71. Kc4 {[%clk 0:00:41]}  Rc1+ {[%clk 0:01:24]} 72. Kd4 {[%clk 0:00:41]}  Rd1+ {[%clk 0:01:24]} 73. Ke3 {[%clk 0:00:41]}  Rb1 {[%clk 0:01:24]} 74. Rc8 {[%clk 0:00:41]}  Rxb7 {[%clk 0:01:24]} 75. Kd4 {[%clk 0:00:41]}  Ra7 {[%clk 0:02:59]} 76. Rc5 {[%clk 0:01:07]}  Rb7 {[%clk 0:02:59]} 77. Ke5 {[%clk 0:01:07]}  Ra7 {[%clk 0:02:59]} 78. Rd5 {[%clk 0:01:07]}  Rb7 {[%clk 0:02:59]} 79. Kf5 {[%clk 0:01:07]}  Re7 {[%clk 0:02:59]} 80. Re5 {[%clk 0:01:07]}  Rxe5+ {[%clk 0:02:59]} 81. Kxe5 {[%clk 0:01:07]}  Kg8 {[%clk 0:02:59]} 82. Kf6 {[%clk 0:00:38]}  Kf8 {[%clk 0:02:24]} 83. g7+ {[%clk 0:00:38]}  Kg8 {[%clk 0:02:24]} 84. Kg6 {[%clk 0:00:38]} 1/2-1/2


[Site "http://www.Chess.com"]

[Event "FIDE World Rapid Chess Championship 2021"]
[White "Heberla, Bartlomiej"]
[Black "Ghaem Maghami, Ehsan"]
[WhiteFideId "1115120"]
[BlackFideId "12500739"]
[WhiteElo "2437"]
[BlackElo "2553"]
[Result "0-1"]
[Round "09"]
[TimeControl "900+10"]
[Date "2021.12.27"]
[WhiteClock "0:00:13"]
[BlackClock "0:00:36"]

1. d4 {[%clk 0:15:00]}  Nf6 {[%clk 0:15:00]} 2. Nf3 {[%clk 0:15:00]}  d5 {[%clk 0:15:00]} 3. c4 {[%clk 0:15:00]}  e6 {[%clk 0:15:00]} 4. Nc3 {[%clk 0:15:00]}  dxc4 {[%clk 0:15:00]} 5. e3 {[%clk 0:15:00]}  a6 {[%clk 0:15:00]} 6. a4 {[%clk 0:15:00]}  b6 {[%clk 0:15:00]} 7. Bxc4 {[%clk 0:15:00]}  Bb7 {[%clk 0:15:00]} 8. O-O {[%clk 0:15:00]}  Bb4 {[%clk 0:15:00]} 9. Qb3 {[%clk 0:12:02]}  Qe7 {[%clk 0:14:59]} 10. d5 {[%clk 0:12:02]}  exd5 {[%clk 0:12:35]} 11. Nxd5 {[%clk 0:12:11]}  Nxd5 {[%clk 0:12:35]} 12. Bxd5 {[%clk 0:12:11]}  Bxd5 {[%clk 0:12:35]} 13. Qxd5 {[%clk 0:12:11]}  Ra7 {[%clk 0:10:00]} 14. b3 {[%clk 0:12:34]}  O-O {[%clk 0:09:53]} 15. Bb2 {[%clk 0:09:52]}  Rd8 {[%clk 0:09:53]} 16. Qf5 {[%clk 0:09:55]}  Nc6 {[%clk 0:08:22]} 17. Qg4 {[%clk 0:04:55]}  g6 {[%clk 0:08:22]} 18. Rac1 {[%clk 0:04:55]}  Bc5 {[%clk 0:08:22]} 19. Qf4 {[%clk 0:04:25]}  Bd6 {[%clk 0:05:00]} 20. Qc4 {[%clk 0:03:56]}  Ne5 {[%clk 0:02:57]} 21. Qc3 {[%clk 0:01:34]}  Nxf3+ {[%clk 0:02:57]} 22. gxf3 {[%clk 0:01:34]}  f6 {[%clk 0:01:38]} 23. Qc4+ {[%clk 0:01:43]}  Kg7 {[%clk 0:01:38]} 24. Rfd1 {[%clk 0:01:43]}  Raa8 {[%clk 0:01:38]} 25. Rd4 {[%clk 0:01:43]}  Qf7 {[%clk 0:01:38]} 26. Qd3 {[%clk 0:01:43]}  Re8 {[%clk 0:01:38]} 27. Rd1 {[%clk 0:01:43]}  Re6 {[%clk 0:00:26]} 28. f4 {[%clk 0:00:32]}  Re7 {[%clk 0:00:26]} 29. Rd5 {[%clk 0:00:32]}  a5 {[%clk 0:00:26]} 30. h4 {[%clk 0:00:32]}  Rae8 {[%clk 0:00:26]} 31. h5 {[%clk 0:00:32]}  Qe6 {[%clk 0:00:26]} 32. Qe2 {[%clk 0:00:32]}  Qh3 {[%clk 0:00:26]} 33. Rxd6 {[%clk 0:00:32]}  cxd6 {[%clk 0:00:26]} 34. Rxd6 {[%clk 0:00:32]}  Re6 {[%clk 0:00:26]} 35. Rd7+ {[%clk 0:00:32]}  R8e7 {[%clk 0:00:26]} 36. Rd5 {[%clk 0:00:32]}  Rxe3 {[%clk 0:00:26]} 37. fxe3 {[%clk 0:00:13]}  Rxe3 {[%clk 0:00:36]} 38. Bxf6+ {[%clk 0:00:13]}  Kxf6 {[%clk 0:00:36]} 39. Qb2+ {[%clk 0:00:13]}  Kf7 {[%clk 0:00:36]} 40. hxg6+ {[%clk 0:00:13]}  hxg6 {[%clk 0:00:36]} 41. Rg5 {[%clk 0:00:13]}  Re1+ {[%clk 0:00:36]} 42. Kf2 {[%clk 0:00:13]}  Rf1+ {[%clk 0:00:36]} 43. Ke2 {[%clk 0:00:13]}  Qf3+ {[%clk 0:00:36]} 44. Kd2 {[%clk 0:00:13]}  Rd1+ {[%clk 0:00:36]} 0-1


[Site "http://www.Chess.com"]

[Event "FIDE World Rapid Chess Championship 2021"]
[White "Kozak, Adam"]
[Black "Martirosyan, Haik M."]
[WhiteFideId "753246"]
[BlackFideId "13306553"]
[WhiteElo "2552"]
[BlackElo "2377"]
[Result "1/2-1/2"]
[Round "09"]
[TimeControl "900+10"]
[Date "2021.12.27"]
[WhiteClock "0:05:23"]
[BlackClock "0:01:41"]

1. Nf3 {[%clk 0:15:00]}  Nf6 {[%clk 0:15:00]} 2. g3 {[%clk 0:15:00]}  d5 {[%clk 0:15:00]} 3. Bg2 {[%clk 0:15:00]}  e6 {[%clk 0:15:00]} 4. O-O {[%clk 0:15:00]}  Be7 {[%clk 0:15:00]} 5. c4 {[%clk 0:15:00]}  O-O {[%clk 0:15:00]} 6. d4 {[%clk 0:15:00]}  dxc4 {[%clk 0:15:00]} 7. Qc2 {[%clk 0:15:00]}  a6 {[%clk 0:15:00]} 8. a4 {[%clk 0:15:00]}  b6 {[%clk 0:15:00]} 9. Bg5 {[%clk 0:16:04]}  Bb7 {[%clk 0:14:40]} 10. Qxc4 {[%clk 0:16:04]}  Nbd7 {[%clk 0:14:40]} 11. Nc3 {[%clk 0:14:05]}  c5 {[%clk 0:13:53]} 12. Rfd1 {[%clk 0:14:05]}  Rc8 {[%clk 0:13:53]} 13. Bxf6 {[%clk 0:14:05]}  Nxf6 {[%clk 0:12:24]} 14. dxc5 {[%clk 0:13:03]}  Qc7 {[%clk 0:12:24]} 15. c6 {[%clk 0:12:59]}  Qxc6 {[%clk 0:10:20]} 16. Qxc6 {[%clk 0:12:59]}  Bxc6 {[%clk 0:10:20]} 17. Ne5 {[%clk 0:12:59]}  Bxg2 {[%clk 0:10:20]} 18. Kxg2 {[%clk 0:12:59]}  Rc7 {[%clk 0:10:20]} 19. Rd3 {[%clk 0:08:50]}  Rfc8 {[%clk 0:09:23]} 20. Rad1 {[%clk 0:08:50]}  Kf8 {[%clk 0:09:23]} 21. f4 {[%clk 0:08:50]}  Ke8 {[%clk 0:09:23]} 22. g4 {[%clk 0:08:27]}  Bb4 {[%clk 0:08:05]} 23. Na2 {[%clk 0:08:27]}  Be7 {[%clk 0:08:05]} 24. Nc3 {[%clk 0:08:27]}  Bb4 {[%clk 0:08:05]} 25. Na2 {[%clk 0:08:27]}  Be7 {[%clk 0:07:33]} 26. Nc3 {[%clk 0:06:59]}  h6 {[%clk 0:04:50]} 27. Kf3 {[%clk 0:06:59]}  g5 {[%clk 0:04:50]} 28. e3 {[%clk 0:06:59]}  Rc5 {[%clk 0:04:50]} 29. h3 {[%clk 0:06:30]}  R5c7 {[%clk 0:03:14]} 30. Rd4 {[%clk 0:06:30]}  Bc5 {[%clk 0:03:14]} 31. R4d3 {[%clk 0:06:30]}  Be7 {[%clk 0:02:27]} 32. Rd4 {[%clk 0:05:31]}  Bc5 {[%clk 0:02:27]} 33. R4d3 {[%clk 0:05:31]}  Be7 {[%clk 0:02:27]} 34. Rd4 {[%clk 0:05:31]}  Bc5 {[%clk 0:02:27]} 35. R4d3 {[%clk 0:05:23]}  Be7 {[%clk 0:01:41]} 1/2-1/2


[Site "http://www.Chess.com"]